fUSD/lending_fUSD_20240901
["ID","MTS","AMOUNT","RATE_DAILY","PERIOD"]
[336789087,1725148890350,196.56,9.065e-05,2]
[336789088,1725148930387,550.0,0.00011,2]
[336789089,1725149071319,382.78,0.00010217,2]
[336789090,1725149074279,167.26,9.276e-05,2]
[336789092,1725149225655,150.04,0.00010959,2]
[336789109,1725149410184,-200.0,0.000111,2]
[336789110,1725149410211,-164.46,0.00011425,2]
[336789111,1725149410238,-200.0,0.00011452,2]
[336789112,1725149410264,-250.0,0.00011457,2]
[336789113,1725149410291,-150.0,0.00011481,2]
[336789114,1725149410316,-2006.26,0.00011508,2]
[336789115,1725149410343,-250.0,0.00011529,2]
[336789116,1725149410371,-180.0,0.00011557,2]
[336789117,1725149410398,-250.0,0.0001159,2]
[336789118,1725149410426,-494.3215966,0.00011609,2]
[336789119,1725149410460,-1005.6784034,0.00011609,2]
[336789120,1725149410489,-3139.3631932,0.00011642,2]
[336789121,1725149410524,-4145.0415966,0.00011642,2]
[336789122,1725149410565,-1710.5952102,0.00011642,2]
[336789123,1725149410592,-848.77,0.0001167,2]
[336789124,1725149410620,-211.47,0.00011681,2]
[336789125,1725149410646,-150.0,0.00011688,2]
[336789126,1725149410673,-464.05,0.00011691,2]
[336789127,1725149410700,-193.64595525,0.00011738,2]
[336789131,1725149431472,-606.35404475,0.00011738,2]
[336789132,1725149431484,-169.87,0.00011805,2]
[336789133,1725149431496,-169.87,0.00011834,2]
[336789134,1725149431507,-169.87,0.00011864,2]
[336789135,1725149431518,-499.99,0.00011914,2]
[336789136,1725149431528,-17749.17325969,0.00011964,2]
[336789137,1725149431542,-250.45635732,0.00011964,2]
[336789138,1725149431555,-5900.37038299,0.00011964,2]
[336789139,1725149431565,-4917.78,0.00012243,2]
[336789140,1725149431575,-600.0,0.0001235,2]
[336789141,1725149431585,-292.0,0.00012417,2]
[336789142,1725149431595,-382.78,0.00012481,2]
[336789143,1725149431606,-150.0,0.00012644,2]
[336789144,1725149431615,-22891.67236571,0.00012645,2]
[336789145,1725149431627,-346.0545,0.000129,2]
[336789146,1725149431637,-179.08401675,0.000129,2]
[336789147,1725149431646,-2738.0346,0.000129,2]
[336789148,1725149431656,-177.30717814,0.000129,2]
[336789149,1725149431666,-201.78608961,0.000129,2]
[336789150,1725149431676,-1774.02275383,0.000129,2]
[336789151,1725149431703,-8311.72992793,0.000129,2]
[336789152,1725149431716,-502.90722895,0.000129,2]
[336789153,1725149431729,-30220.12655121,0.000129,2]
[336789154,1725149431739,-1737.72824888,0.000129,2]
[336789155,1725149431750,-346.95409739,0.000129,2]
[336789156,1725149431760,-359.23462416,0.000129,2]
[336789157,1725149431770,-171.98,0.00012932,2]
[336789158,1725149431780,-440.3831,0.00012959,2]
[336789159,1725149431790,-800.0,0.0001297,2]
[336789160,1725149431800,-500.0,0.0001297,2]
[336789161,1725149431811,-631.27958502,0.00012973,2]
[336789162,1725149431822,-500.0,0.00012973,2]
[336789163,1725149431831,-500.0,0.00012973,2]
[336789164,1725149431840,-150.71639531,0.00012986,2]
[336789165,1725149431849,-153.59,0.0001299,2]
[336789166,1725149431858,-153.59,0.0001299,2]
[336789167,1725149431867,-153.59,0.0001299,2]
[336789168,1725149431876,-153.59,0.0001299,2]
[336789169,1725149431885,-153.59,0.0001299,2]
[336789170,1725149431898,-215.29269074,0.00012997,2]
[336789171,1725149431907,-500.0,0.00012999,2]
[336789172,1725149431916,-500.0,0.00012999,2]
[336789173,1725149431925,-500.0,0.00012999,2]
[336789174,1725149431934,-500.0,0.00012999,2]
[336789175,1725149431943,-500.0,0.00012999,2]
[336789176,1725149431952,-500.0,0.00012999,2]
[336789177,1725149431961,-500.0,0.00012999,2]
[336789178,1725149431970,-500.0,0.00012999,2]
[336789179,1725149431979,-500.0,0.00012999,2]
[336789180,1725149431989,-500.0,0.00012999,2]
[336789181,1725149431998,-500.0,0.00012999,2]
[336789182,1725149432008,-500.0,0.00012999,2]
[336789183,1725149432017,-500.0,0.00012999,2]
[336789184,1725149432026,-500.0,0.00012999,2]
[336789185,1725149432035,-500.0,0.00012999,2]
[336789186,1725149432044,-500.0,0.00012999,2]
[336789187,1725149432053,-500.0,0.00012999,2]
[336789188,1725149432314,-500.0,0.00012999,2]
[336789189,1725149432323,-500.0,0.00012999,2]
[336789190,1725149432332,-500.0,0.00012999,2]
[336789191,1725149432342,-500.0,0.00012999,2]
[336789192,1725149432351,-500.0,0.00012999,2]
[336789193,1725149432359,-554.29086709,0.00012999,2]
[336789194,1725149432369,-500.0,0.00012999,2]
[336789195,1725149432378,-500.0,0.00012999,2]
[336789196,1725149432387,-150.0,0.00012999,2]
[336789197,1725149432396,-5263.64674336,0.00013,2]
[336789198,1725149432414,-16152.42322272,0.00013,2]
[336789199,1725149432425,-8529.42497305,0.00013,2]
[336789200,1725149432436,-684.71908266,0.00013,2]
[336789201,1725149432461,-1991.81902353,0.00013,2]
[336789202,1725149432473,-2053.25173375,0.00013,2]
[336789203,1725149432484,-994.87575444,0.00013,2]
[336789204,1725149432502,-865.31617129,0.00013,2]
[336789205,1725149432513,-516.47725402,0.00013,2]
[336789208,1725149437653,-487091.02985328,0.00013,2]
[336789209,1725149437708,-563.31326908,0.00013,2]
[336789210,1725149437719,-428.61941707,0.00013,2]
[336789211,1725149437762,-7457.2856901,0.00013,2]
[336789212,1725149437774,-2680.56791672,0.00013,2]
[336789213,1725149437785,-655.43194,0.00013,2]
[336789214,1725149437816,-6022.5791488,0.00013,2]
[336789215,1725149437872,-1114.47748706,0.00013,2]
[336789216,1725149437885,-867.57638522,0.00013,2]
[336789217,1725149437897,-7293.58596012,0.00013,2]
[336789218,1725149437908,-8233.67288528,0.00013,2]
[336789219,1725149437919,-815.0,0.00013,2]
[336789221,1725149437930,-329.43847413,0.00013,2]
[336789224,1725149437955,-815.95389917,0.00013,2]
[336789226,1725149437967,-620.0,0.00013,2]
[336789372,1725149439680,-891.51412651,0.00013,2]
[336789374,1725149439691,-24001.74223655,0.00013,2]
[336789378,1725149439717,-9557.26498008,0.00013,2]
[336789380,1725149439726,-5683.6982454,0.00013,2]
[336789384,1725149439755,-392.85540526,0.00013,2]
[336789386,1725149439767,-795.34711448,0.00013,2]
[336789389,1725149439781,-42222.75,0.00013,2]
[336789420,1725149440064,-3685.40636476,0.00013,2]
[336789429,1725149440138,-407985.16052577,0.00013,2]
[336789436,1725149440193,-1337682.40132901,0.00013,2]
[336789438,1725149440204,-1730.84596,0.00013,2]
[336789452,1725149440323,-828.75769103,0.00013,2]
[336789454,1725149440334,-607.5499219,0.00013,2]
[336789456,1725149440345,-644.10641409,0.00013,2]
[336789458,1725149440356,-7004.4975025,0.00013,2]
[336789735,1725149445514,-638.1918959,0.00013,2]
[336789738,1725149555044,187.18,0.00010465,2]
[336789739,1725149610486,84.77574782,0.00010922,2]
[336789740,1725149610508,280.42425218,0.00010922,2]
[336789742,1725149740866,155.67,0.00010959,2]
[336789743,1725150003138,300.0,0.00010959,2]
[336789744,1725150110357,346.94,9.787e-05,2]
[336789745,1725150168219,196.56,8.928e-05,2]
[336789747,1725150266203,158.24,0.00010959,2]
[336789748,1725150308368,1276.96040466,0.0001099,2]
[336789749,1725150329444,3172.26052996,0.000101,2]
[336789750,1725150350856,522.82863702,0.00010988,2]
[336789751,1725150353228,7665.00101707,0.00010399,2]
[336789753,1725150430930,22276.65459461,0.00010999,2]
[336789769,1725150576052,-4470.08017304,0.00011501,2]
[336789770,1725150576093,-4470.08017304,0.00011501,2]
[336789771,1725150576131,-4470.08017304,0.00011501,2]
[336789772,1725150576178,-4470.08017304,0.00011501,2]
[336789773,1725150576230,-4470.08017304,0.00011501,2]
[336789774,1725150576301,-1549.5991348,0.00011501,2]
[336789775,1725150576333,-175.69822379,0.00011537,2]
[336789776,1725150576365,-2565.205812,0.00011572,2]
[336789777,1725150576395,-179.57700245,0.0001163,2]
[336789778,1725150576777,-70.42299755,0.0001163,2]
[336789779,1725150576805,-250.0,0.00011637,2]
[336789780,1725150576835,-150.0,0.00011637,2]
[336789781,1725150576863,-233.6,0.00011648,2]
[336789782,1725150576891,-1983.48894646,0.00011648,2]
[336789803,1725150631756,-270.26587227,0.00011648,2]
[336789804,1725150631767,-521.124372,0.00011648,2]
[336789805,1725150631778,-595.5625,0.00011648,2]
[336789806,1725150631815,-1175.95830927,0.00011648,2]
[336789807,1725150631824,-250.0,0.00011659,2]
[336789808,1725150631833,-171.98,0.00011662,2]
[336789809,1725150631842,-135.41798714,0.00011685,2]
[336789810,1725150631853,-376.34201286,0.00011685,2]
[336789811,1725150631862,-280.35,0.00011688,2]
[336789812,1725150631871,-162.58798714,0.00012051,2]
[336789813,1725150631881,-184.35201286,0.00012051,2]
[336789814,1725150631892,-499.99,0.00012051,2]
[336789815,1725150631901,-300.0,0.000123,4]
[336789816,1725150631910,-600.0,0.000124,4]
[336789817,1725150631919,-157.16,0.0001244,2]
[336789818,1725150631928,-157.16,0.00012444,2]
[336789819,1725150631937,-581.46413976,0.00012444,2]
[336789820,1725150631948,-105.56586024,0.00012444,2]
[336789821,1725150631957,-157.16,0.00012448,2]
[336789822,1725150631966,-124.29702997,0.00012452,2]
[336789823,1725150631978,-32.86297003,0.00012452,2]
[336789824,1725150631987,-157.16,0.00012456,2]
[336789825,1725150631998,-157.16,0.0001246,2]
[336789826,1725150632009,-157.16,0.00012464,2]
[336789827,1725150632018,-157.16,0.00012467,2]
[336789828,1725150632027,-157.16,0.00012471,2]
[336789829,1725150632036,-157.16,0.00012475,2]
[336789830,1725150632047,-157.16,0.00012479,2]
[336789831,1725150632057,-157.16,0.00012483,2]
[336789832,1725150632066,-157.16,0.00012487,2]
[336789833,1725150632076,-157.16,0.00012491,2]
[336789834,1725150632085,-157.16,0.00012495,2]
[336789835,1725150632095,-157.16,0.00012499,2]
[336789836,1725150632105,-150.0,0.00012499,2]
[336789837,1725150632114,-764.1593386,0.000125,4]
[336789839,1725150632128,-235.8406614,0.000125,4]
[336789841,1725150632138,-157.16,0.00012502,2]
[336789843,1725150632148,-733.97683477,0.000126,4]
[336789844,1725150632168,-271.05628702,0.000126,4]
[336789845,1725150632180,-294.96687821,0.000126,4]
[336789846,1725150632190,-500.0,0.00012673,2]
[336789847,1725150632200,-432.52,0.00012673,2]
[336789848,1725150632209,-31.7964368,0.0001268,2]
[336789849,1725150632223,-2363.32361815,0.0001268,2]
[336789850,1725150632234,-15737.33836285,0.0001268,2]
[336789851,1725150632245,-2999.0,0.0001268,2]
[336789852,1725150632259,-1936.87128191,0.0001268,2]
[336789856,1725150637789,-2469.79999999,0.0001268,2]
[336789857,1725150638064,-1740.23574316,0.0001268,2]
[336790007,1725150639817,-265.061224,0.0001268,2]
[336790008,1725150640043,-16444.70238965,0.0001268,2]
[336790010,1725150640098,-38826.02239335,0.0001268,2]
[336790218,1725150643662,-9469.56113962,0.0001268,2]
[336790219,1725150643671,-157.33,0.00012697,2]
[336790220,1725150643680,-1600.0,0.000127,4]
[336790221,1725150643689,-300.0,0.000128,4]
[336790222,1725150643697,-36727.90781571,0.00012899,2]
[336790223,1725150643706,-111.5546297,0.000129,2]
[336790224,1725150643717,-67.52938704,0.000129,2]
[336790225,1725150643727,-177.30717811,0.000129,2]
[336790226,1725150643736,-29.57515011,0.000129,2]
[336790235,1725150654587,160.0,0.00011,2]
[336790237,1725150736730,550.0,0.00011,2]
[336790238,1725150766450,312.24,0.00010515,2]
[336790240,1725150772083,160.16,0.00010959,2]
[336790241,1725150796986,2000.0,0.00023886,120]
[336790242,1725151262455,7145.75662644,0.00023,120]
[336790243,1725151296400,296.62,9.938e-05,2]
[336790244,1725151347770,162.84,0.00010959,2]
[336790265,1725151799502,281.78,9.942e-05,2]
[336790274,1725151831856,-300.0,0.00011844,2]
[336790276,1725151831866,-250.0,0.00011845,2]
[336790278,1725151831875,-23900.0,0.00011845,2]
[336790280,1725151831884,-250.0,0.0001185,2]
[336790282,1725151831894,-157.35,0.0001185,2]
[336790288,1725151832161,-1000.0,0.00011853,2]
[336790289,1725151832172,-255.88,0.00011856,2]
[336790291,1725151832182,-281.78,0.00012205,2]
[336790292,1725151832191,-150.0,0.00012356,2]
[336790293,1725151832200,-150.18,0.00012371,2]
[336790294,1725151832211,-150.0,0.00012728,2]
[336790295,1725151832221,-150.0,0.00012729,2]
[336790296,1725151832230,-499.99,0.00012729,2]
[336790297,1725151832239,-150.0,0.0001273,2]
[336790298,1725151832250,-150.0,0.00012731,2]
[336790299,1725151832260,-150.0,0.00012734,2]
[336790300,1725151832270,-150.0,0.00012735,2]
[336790301,1725151832280,-150.0,0.00012736,2]
[336790302,1725151832290,-150.0,0.00012739,2]
[336790303,1725151832299,-150.0,0.00012741,2]
[336790304,1725151832309,-150.0,0.00012742,2]
[336790305,1725151832318,-150.0,0.00012742,2]
[336790306,1725151832327,-150.0,0.00012747,2]
[336790307,1725151832337,-150.0,0.00012747,2]
[336790308,1725151832346,-150.0,0.00012754,2]
[336790309,1725151832355,-150.0,0.00012754,2]
[336790310,1725151832364,-150.0,0.00012757,2]
[336790311,1725151832373,-150.0,0.00012757,2]
[336790312,1725151832382,-150.0,0.00012761,2]
[336790313,1725151832391,-150.0,0.00012762,2]
[336790314,1725151832400,-150.0,0.00012762,2]
[336790315,1725151832409,-150.0,0.00012762,2]
[336790316,1725151832418,-150.0,0.00012768,2]
[336790317,1725151832436,-150.0,0.00012771,2]
[336790318,1725151832447,-150.0,0.00012771,2]
[336790319,1725151832456,-150.0,0.00012773,2]
[336790320,1725151832466,-150.0,0.00012781,2]
[336790321,1725151832476,-150.0,0.00012783,2]
[336790322,1725151832485,-150.0,0.00012785,2]
[336790323,1725151832495,-150.0,0.00012788,2]
[336790324,1725151832504,-150.0,0.00012789,2]
[336790325,1725151832514,-1896.25292195,0.0001279,2]
[336790326,1725151832523,-150.0,0.00012797,2]
[336790327,1725151832533,-3149.31533307,0.000128,2]
[336790328,1725151832543,-150.0,0.000128,2]
[336790329,1725151832552,-150.0,0.00012801,2]
[336790330,1725151832562,-150.0,0.00012801,2]
[336790331,1725151832572,-150.0,0.00012801,2]
[336790332,1725151832581,-150.0,0.00012805,2]
[336790333,1725151832590,-150.0,0.00012807,2]
[336790334,1725151832599,-150.0,0.00012816,2]
[336790335,1725151832608,-150.0,0.0001282,2]
[336790336,1725151832618,-150.0,0.00012822,2]
[336790337,1725151832627,-150.0,0.00012825,2]
[336790338,1725151832636,-150.0,0.00012827,2]
[336790339,1725151832646,-150.0,0.00012828,2]
[336790340,1725151832655,-150.0,0.00012835,2]
[336790341,1725151832665,-150.0,0.00012835,2]
[336790342,1725151832674,-150.0,0.00012835,2]
[336790343,1725151832684,-150.0,0.00012836,2]
[336790344,1725151832693,-150.0,0.00012837,2]
[336790345,1725151832703,-150.0,0.00012841,2]
[336790346,1725151832712,-150.0,0.00012841,2]
[336790347,1725151832721,-150.0,0.00012841,2]
[336790348,1725151832730,-150.0,0.00012848,2]
[336790349,1725151832739,-150.0,0.0001285,2]
[336790350,1725151832749,-150.0,0.00012851,2]
[336790351,1725151832759,-150.0,0.00012853,2]
[336790352,1725151832768,-1500.0,0.00012854,2]
[336790353,1725151832777,-150.0,0.00012858,2]
[336790354,1725151832787,-150.0,0.0001286,2]
[336790355,1725151832797,-150.0,0.0001286,2]
[336790356,1725151832806,-150.0,0.00012862,2]
[336790357,1725151832815,-150.0,0.00012864,2]
[336790358,1725151832825,-150.0,0.00012865,2]
[336790359,1725151832835,-1500.0,0.00012866,2]
[336790360,1725151832844,-1500.0,0.00012867,2]
[336790361,1725151832853,-150.0,0.00012868,2]
[336790362,1725151832864,-150.0,0.00012868,2]
[336790363,1725151832876,-150.0,0.00012871,2]
[336790364,1725151832886,-150.0,0.00012873,2]
[336790365,1725151832896,-150.0,0.00012874,2]
[336790366,1725151832907,-300.70201465,0.00012879,2]
[336790367,1725151832917,-150.0,0.00012881,2]
[336790368,1725151832930,-150.0,0.00012883,2]
[336790369,1725151832940,-150.0,0.00012884,2]
[336790370,1725151832951,-150.0,0.00012885,2]
[336790371,1725151832961,-150.0,0.00012886,2]
[336790372,1725151832972,-150.0,0.00012888,2]
[336790373,1725151832984,-150.0,0.00012893,2]
[336790374,1725151832999,-500.0,0.00012895,2]
[336790375,1725151833008,-500.0,0.00012896,2]
[336790376,1725151833018,-500.0,0.00012896,2]
[336790377,1725151833028,-150.0,0.00012896,2]
[336790378,1725151833038,-150.0,0.00012898,2]
[336790379,1725151833048,-150.0,0.00012898,2]
[336790380,1725151833058,-179.08401674,0.000129,2]
[336790381,1725151833068,-176.94009083,0.000129,2]
[336790382,1725151833077,-10387.79834975,0.000129,2]
[336790383,1725151833103,-2127.91,0.000129,2]
[336790384,1725151833114,-7011.24858087,0.000129,2]
[336790385,1725151833125,-283.96267537,0.000129,2]
[336790386,1725151833137,-2563.80281222,0.000129,2]
[336790387,1725151833148,-1239.39805608,0.000129,2]
[336790388,1725151833168,-9458.96417481,0.000129,2]
[336790389,1725151833178,-2262.84766695,0.000129,2]
[336790390,1725151833193,-364.67036088,0.000129,2]
[336790391,1725151833304,-251.03914311,0.000129,2]
[336790396,1725151837948,-121.44282906,0.000129,2]
[336790397,1725151837958,-322.73720876,0.000129,2]
[336790398,1725151837967,-346.79467209,0.000129,2]
[336790399,1725151837976,-3916.73144348,0.000129,2]
[336790400,1725151837985,-180.57146628,0.000129,2]
[336790401,1725151838000,-19.33293963,0.000129,2]
[336790402,1725151838009,-854.9077917,0.000129,2]
[336790403,1725151838021,-1194.1931649,0.000129,2]
[336790404,1725151838032,-2968.05,0.000129,2]
[336790405,1725151838146,-9998.62197551,0.000129,2]
[336790406,1725151838155,-150.0,0.00012912,2]
[336790407,1725151838164,-150.0,0.00012914,2]
[336790408,1725151838175,-150.0,0.00012915,2]
[336790409,1725151838184,-150.0,0.0001292,2]
[336790410,1725151838194,-150.0,0.00012923,2]
[336790411,1725151838203,-150.0,0.00012932,2]
[336790412,1725151838213,-150.0,0.00012933,2]
[336790413,1725151838222,-150.0,0.00012934,2]
[336790414,1725151838231,-150.0,0.00012937,2]
[336790415,1725151838241,-150.0,0.00012939,2]
[336790416,1725151838250,-150.0,0.00012941,2]
[336790417,1725151838260,-150.0,0.00012941,2]
[336790418,1725151838270,-150.0,0.00012942,2]
[336790419,1725151838279,-150.0,0.00012943,2]
[336790420,1725151838289,-150.0,0.00012949,2]
[336790421,1725151838300,-150.0,0.00012951,2]
[336790422,1725151838310,-1500.0,0.00012954,2]
[336790423,1725151838319,-270.83775241,0.00012954,2]
[336790424,1725151838329,-150.0,0.00012955,2]
[336790425,1725151838338,-150.0,0.00012957,2]
[336790426,1725151838347,-150.0,0.00012963,2]
[336790427,1725151838357,-150.0,0.00012963,2]
[336790428,1725151838367,-150.0,0.00012964,2]
[336790429,1725151838376,-150.0,0.00012964,2]
[336790430,1725151838386,-150.0,0.00012965,2]
[336790431,1725151838395,-400.0,0.0001297,2]
[336790444,1725151838650,-320.190336,0.00012973,2]
[336790445,1725151838704,-500.0,0.00012973,2]
[336790446,1725151838713,-150.0,0.00012978,2]
[336790447,1725151838723,-150.0,0.00012983,2]
[336790448,1725151838733,-150.0,0.00012984,2]
[336790449,1725151838742,-150.0,0.00012986,2]
[336790450,1725151838752,-1533.68288101,0.00012986,2]
[336790451,1725151838761,-670.0,0.00012988,2]
[336790452,1725151838771,-153.59,0.0001299,2]
[336790453,1725151838780,-153.59,0.0001299,2]
[336790454,1725151838790,-153.59,0.0001299,2]
[336790455,1725151838799,-153.59,0.0001299,2]
[336790456,1725151838808,-150.0,0.00012995,2]
[336790457,1725151838818,-150.0,0.00012996,2]
[336790458,1725151838827,-1762.05906666,0.00012997,2]
[336790459,1725151838838,-188.75297818,0.00012999,2]
[336790460,1725151838849,-500.0,0.00012999,2]
[336790461,1725151838858,-337.70988339,0.00012999,2]
[336790462,1725151838868,-500.0,0.00012999,2]
[336790463,1725151838879,-293.07413093,0.00012999,2]
[336790464,1725151838890,-500.0,0.00012999,2]
[336790465,1725151838900,-500.0,0.00012999,2]
[336790466,1725151838911,-500.0,0.00012999,2]
[336790467,1725151838921,-500.0,0.00012999,2]
[336790468,1725151838931,-500.0,0.00012999,2]
[336790469,1725151838940,-500.0,0.00012999,2]
[336790470,1725151838950,-500.0,0.00012999,2]
[336790471,1725151838961,-350.00000001,0.00012999,2]
[336790472,1725151838971,-500.0,0.00012999,2]
[336790473,1725151838981,-500.0,0.00012999,2]
[336790474,1725151838993,-500.0,0.00012999,2]
[336790475,1725151839004,-259.7364998,0.00012999,2]
[336790476,1725151839014,-911.22292052,0.00012999,2]
[336790477,1725151839023,-2258.99999901,0.00012999,2]
[336790478,1725151839034,-150.0,0.00012999,2]
[336790479,1725151839045,-492707.600573,0.00013,2]
[336790480,1725151839054,-599798.96509186,0.00013,2]
[336790481,1725151839065,-498.35828287,0.00013,2]
[336790482,1725151839086,-1000.0,0.00013,2]
[336790483,1725151839096,-2033.01980657,0.00013,2]
[336790484,1725151839107,-400.66006187,0.00013,2]
[336790485,1725151839125,-598.31424,0.00013,2]
[336790486,1725151839691,-288.55661629,0.00013,2]
[336790488,1725151839703,-515306.17038278,0.00013,2]
[336790490,1725151839714,-422.93386393,0.00013,2]
[336790492,1725151839729,-1291.06,0.00013,2]
[336790493,1725151839740,-356.528,0.00013,2]
[336790494,1725151839751,-8779.34461839,0.00013,2]
[336790500,1725151840174,-3804.28083584,0.00013,2]
[336790501,1725151840185,-884.16644664,0.00013,2]
[336790502,1725151840208,-1720.07733724,0.00013,2]
[336790503,1725151840224,-2971.81674876,0.00013,2]
[336790504,1725151840235,-285.24212946,0.00013,2]
[336790505,1725151840246,-137770.65190956,0.00013,2]
[336790506,1725151840257,-1016.89946502,0.00013,2]
[336790507,1725151840269,-41374.91738175,0.00013,2]
[336790508,1725151840287,-3455.39202086,0.00013,2]
[336790509,1725151840299,-20002.89782908,0.00013,2]
[336790510,1725151840310,-1712.75895326,0.00013,2]
[336790511,1725151840321,-1335.93812631,0.00013,2]
[336790512,1725151840333,-504.152,0.00013,2]
[336790513,1725151840344,-2843.51779656,0.00013,2]
[336790514,1725151840367,-2750.59999996,0.00013,2]
[336790515,1725151840426,-417515.93093922,0.00013,2]
[336790524,1725151840505,-253.44497898,0.00013,2]
[336790526,1725151840516,-556.86577081,0.00013,2]
[336790528,1725151840527,-24929.11631104,0.00013,2]
[336790531,1725151840551,-293.59112959,0.00013,2]
[336790744,1725151842949,-909.99421243,0.000129,2]
[336790745,1725151842959,-549.97464921,0.00013,2]
[336790746,1725151842970,-10675.53744007,0.00013,2]
[336790792,1725151843628,-388.75856295,0.00012973,2]
[336790795,1725151843640,-111.24143705,0.00012973,2]
[336790796,1725151843649,-273.1085626,0.00013,2]
[336790799,1725151843660,-153074.83481633,0.00013,2]
[336790801,1725151843687,-327.12129972,0.00013,2]
[336790802,1725151843697,-9250.7235472,0.00013,2]
[336790803,1725151843708,-1243.9391314,0.00013,2]
[336790804,1725151843719,-4336.95767507,0.00013,2]
[336790805,1725151843730,-3558.0,0.00013,2]
[336790806,1725151843742,-612.5,0.00013,2]
[336790807,1725151843753,-56948.75971001,0.00013,2]
[336790808,1725151843771,-11622.14683793,0.00013,2]
[336790809,1725151843782,-360.80937151,0.00013,2]
[336790811,1725151845895,-1452.70560616,0.00013,2]
[336790812,1725151845954,-16116.7258984,0.00013,2]
[336790813,1725151845966,-783.9555,0.00013,2]
[336790814,1725151845977,-671.91103816,0.00013,2]
[336790815,1725151845989,-1933.99298,0.00013,2]
[336790816,1725151846000,-660.32229313,0.00013,2]
[336790817,1725151846022,-1803.81282686,0.00013,2]
[336790818,1725151846034,-620.1702649,0.00013,2]
[336790819,1725151846045,-2673.4011696,0.00013,2]
[336790820,1725151846072,-547.84176427,0.00013,2]
[336790821,1725151846083,-738.99663838,0.00013,2]
[336790822,1725151846095,-685.24266482,0.00013,2]
[336790823,1725151846131,-358.98164773,0.00013,2]
[336790824,1725151851388,150.04,0.00010959,2]
[336790826,1725151998221,2000.0,0.00024,120]
[336790830,1725152439158,1121.99,0.00024,120]
[336790831,1725152446834,157.08,0.00010959,2]
[336790832,1725152475408,253.6,9.964e-05,2]
[336790833,1725152543648,550.0,0.00011,2]
[336790834,1725152598198,2000.0,0.00023975,120]
[336790850,1725152918608,158.23,0.00010959,2]
[336790851,1725152935732,-150.0,0.00011688,2]
[336790852,1725152935762,-300.0,0.00011868,2]
[336790853,1725152935791,-3021.48695968,0.00011869,2]
[336790854,1725152953995,240.92,9.944e-05,2]
[336790857,1725153032038,-300.0,0.00011868,2]
[336790858,1725153032047,-7611.70535856,0.00011869,2]
[336790859,1725153032059,-266.95294903,0.00011869,2]
[336790860,1725153032070,-12999.85473273,0.00011869,2]
[336790861,1725153032080,-248.33,0.0001187,2]
[336790862,1725153032090,-150.18,0.00011871,2]
[336790863,1725153032101,-255.88,0.00011873,2]
[336790864,1725153032111,-1000.0,0.00011873,2]
[336790865,1725153032121,-250.0,0.00011876,2]
[336790866,1725153032130,-150.0,0.00012121,2]
[336790867,1725153032140,-240.92,0.00012208,2]
[336790868,1725153032149,-291.52009687,0.00012228,2]
[336790869,1725153032159,-499.99,0.00012228,2]
[336790870,1725153032169,-150.0,0.00012553,2]
[336790871,1725153032179,-150.0,0.00012726,2]
[336790872,1725153032188,-150.0,0.00012727,2]
[336790873,1725153032197,-150.0,0.00012729,2]
[336790874,1725153032206,-150.0,0.00012729,2]
[336790875,1725153032215,-150.0,0.0001273,2]
[336790876,1725153032225,-150.0,0.00012731,2]